fUST/lending_fUST_20250822
["ID","MTS","AMOUNT","RATE_DAILY","PERIOD"]
[380694565,1755847840442,-488.71287885,0.00024657,10]
[380694566,1755847840451,-151.0,0.00024657,7]
[380694568,1755847840461,-535.76577527,0.00024657,10]
[380694569,1755847840470,-480.0,0.00024657,10]
[380694570,1755847840479,-178.98914747,0.00024657,10]
[380694571,1755847840489,-480.0,0.00024657,10]
[380694572,1755847840498,-480.0,0.00024657,10]
[380694573,1755847840508,-480.0,0.00024657,10]
[380694574,1755847840518,-492.34139644,0.00024657,10]
[380694575,1755847840527,-181.093183,0.00024657,7]
[380694576,1755847840537,-480.0,0.00024657,10]
[380694577,1755847840546,-488.15483387,0.00024657,10]
[380694578,1755847840556,-151.0,0.00024657,7]
[380694580,1755847840565,-151.0,0.00024657,7]
[380694581,1755847840575,-480.0,0.00024657,10]
[380694582,1755847840584,-480.0,0.00024657,10]
[380694583,1755847840593,-480.0,0.00024657,10]
[380694584,1755847840603,-480.0,0.00024657,10]
[380694585,1755847840612,-480.0,0.00024657,10]
[380694586,1755847840622,-480.0,0.00024657,10]
[380694587,1755847840631,-480.0,0.00024657,10]
[380694588,1755847840641,-274.808735,0.00024657,7]
[380694589,1755847840650,-153.401174,0.00024657,7]
[380694590,1755847840659,-480.0,0.00024657,10]
[380694591,1755847840669,-151.0,0.00024657,7]
[380694592,1755847840678,-151.0,0.00024657,7]
[380694593,1755847840688,-492.28005833,0.00024657,10]
[380694594,1755847840697,-488.35231199,0.00024657,10]
[380694595,1755847840707,-480.0,0.00024657,10]
[380694596,1755847840716,-480.0,0.00024657,10]
[380694597,1755847840725,-480.0,0.00024657,10]
[380694598,1755847840735,-480.0,0.00024657,10]
[380694599,1755847840745,-151.0,0.00024657,7]
[380694600,1755847840754,-151.0,0.00024657,7]
[380694601,1755847840764,-151.0,0.00024657,7]
[380694602,1755847840773,-151.0,0.00024657,7]
[380694603,1755847840783,-151.0,0.00024657,7]
[380694604,1755847840792,-151.0,0.00024657,7]
[380694605,1755847840801,-480.0,0.00024657,10]
[380694606,1755847840811,-485.79870911,0.00024657,10]
[380694607,1755847840820,-353.56619878,0.00024657,10]
[380694608,1755847840830,-480.0,0.00024657,10]
[380694609,1755847840839,-480.0,0.00024657,10]
[380694610,1755847840849,-566.26530327,0.00024657,10]
[380694611,1755847840859,-180.91555923,0.00024657,10]
[380694612,1755847840867,-180.35925246,0.00024657,10]
[380694613,1755847840878,-480.0,0.00024657,10]
[380694614,1755847840888,-178.90958182,0.00024657,10]
[380694615,1755847840897,-480.0,0.00024657,10]
[380694616,1755847840907,-727.08,0.00024657,10]
[380694617,1755847840916,-480.0,0.00024657,10]
[380694618,1755847840926,-480.0,0.00024657,10]
[380694619,1755847840937,-480.0,0.00024657,10]
[380694620,1755847840947,-480.0,0.00024657,10]
[380694621,1755847840957,-480.0,0.00024657,10]
[380694622,1755847840966,-480.0,0.00024657,10]
[380694623,1755847840975,-480.0,0.00024657,10]
[380694624,1755847840986,-480.0,0.00024657,10]
[380694625,1755847840995,-480.0,0.00024657,10]
[380694626,1755847841005,-480.0,0.00024657,10]
[380694627,1755847841016,-484.27846811,0.00024657,10]
[380694628,1755847841026,-480.0,0.00024657,10]
[380694629,1755847841037,-480.0,0.00024657,10]
[380694630,1755847841046,-480.0,0.00024657,10]
[380694631,1755847841056,-519.40707637,0.00024657,10]
[380694632,1755847841065,-480.0,0.00024657,10]
[380694633,1755847841075,-480.0,0.00024657,10]
[380694634,1755847841084,-480.0,0.00024657,10]
[380694635,1755847841093,-480.0,0.00024657,10]
[380694636,1755847841102,-480.0,0.00024657,10]
[380694637,1755847841112,-480.0,0.00024657,10]
[380694638,1755847841121,-480.0,0.00024657,10]
[380694639,1755847841130,-480.0,0.00024657,10]
[380694640,1755847841140,-480.0,0.00024657,10]
[380694641,1755847841150,-2164.51,0.00024657,10]
[380694642,1755847841160,-535.331257,0.00024657,10]
[380694643,1755847841169,-480.0,0.00024657,10]
[380694644,1755847841184,-480.0,0.00024657,10]
[380694645,1755847841194,-500.77744781,0.00024657,10]
[380694646,1755847841203,-480.0,0.00024657,10]
[380694647,1755847841213,-480.0,0.00024657,10]
[380694648,1755847841223,-480.0,0.00024657,10]
[380694649,1755847841232,-480.0,0.00024657,10]
[380694650,1755847841242,-480.0,0.00024657,10]
[380694651,1755847841251,-480.0,0.00024657,10]
[380694652,1755847841260,-890.84,0.00024657,10]
[380694653,1755847841269,-489.82285713,0.00024657,10]
[380694654,1755847841278,-480.0,0.00024657,3]
[380694655,1755847841288,-480.0,0.00024657,10]
[380694656,1755847841297,-461.57507201,0.00024657,10]
[380694657,1755847841307,-480.0,0.00024657,10]
[380694658,1755847841317,-480.0,0.00024657,10]
[380694659,1755847841327,-559.8756635,0.00024657,10]
[380694660,1755847841336,-367.18948599,0.00024657,10]
[380694661,1755847841345,-483.24652406,0.00024657,10]
[380694662,1755847841355,-480.0,0.00024657,10]
[380694663,1755847841364,-480.0,0.00024657,10]
[380694664,1755847841373,-496.70002113,0.00024657,10]
[380694665,1755847841383,-480.0,0.00024657,10]
[380694666,1755847841392,-480.0,0.00024657,10]
[380694667,1755847841402,-480.0,0.00024657,10]
[380694668,1755847841411,-463.513464,0.00024657,10]
[380694669,1755847841421,-482.42392124,0.00024657,10]
[380694670,1755847841431,-587.17,0.00024657,10]
[380694671,1755847841440,-480.0,0.00024657,10]
[380694672,1755847841450,-322.4677631,0.00024657,10]
[380694673,1755847841459,-480.0,0.00024657,10]
[380694674,1755847841468,-480.0,0.00024657,10]
[380694675,1755847841478,-480.0,0.00024657,10]
[380694676,1755847841487,-480.0,0.00024657,10]
[380694677,1755847841497,-480.0,0.00024657,10]
[380694678,1755847841506,-2067.91,0.00024657,10]
[380694679,1755847841516,-418.05586666,0.00024657,10]
[380694680,1755847841525,-341.75500846,0.00024657,10]
[380694681,1755847841534,-521.37495853,0.00024657,10]
[380694682,1755847841544,-480.0,0.00024657,10]
[380694683,1755847841553,-480.0,0.00024657,10]
[380694684,1755847841563,-271.540565,0.00024657,10]
[380694685,1755847841572,-470.8365844,0.00024657,10]
[380694686,1755847841582,-493.59016025,0.00024657,10]
[380694687,1755847841591,-480.0,0.00024657,10]
[380694688,1755847841600,-485.9465075,0.00024657,10]
[380694689,1755847841610,-536.07,0.00024657,10]
[380694690,1755847841620,-480.0,0.00024657,10]
[380694691,1755847841629,-480.0,0.00024657,10]
[380694692,1755847841639,-1501.81,0.00024657,10]
[380694693,1755847841648,-480.0,0.00024657,10]
[380694694,1755847841658,-553.27240287,0.00024657,10]
[380694695,1755847841667,-480.0,0.00024657,10]
[380694696,1755847841676,-480.0,0.00024657,10]
[380694697,1755847841685,-480.0,0.00024657,10]
[380694698,1755847841694,-480.0,0.00024657,10]
[380694699,1755847841703,-372.99249545,0.00024657,10]
[380694700,1755847841713,-417.15472785,0.00024657,10]
[380694701,1755847841723,-480.0,0.00024657,10]
[380694702,1755847841732,-480.0,0.00024657,10]
[380694703,1755847841742,-480.0,0.00024657,10]
[380694704,1755847841751,-480.0,0.00024657,10]
[380694705,1755847841761,-480.0,0.00024657,10]
[380694706,1755847841770,-480.0,0.00024657,10]
[380694707,1755847841780,-490.156608,0.00024657,10]
[380694708,1755847841789,-480.0,0.00024657,10]
[380694709,1755847841799,-480.0,0.00024657,10]
[380694710,1755847841808,-480.0,0.00024657,10]
[380694711,1755847841818,-256.13429677,0.00024657,10]
[380694712,1755847841827,-161.94536934,0.00024657,10]
[380694713,1755847841836,-801.51,0.00024657,10]
[380694714,1755847841846,-480.0,0.00024657,10]
[380694715,1755847841856,-483.85066555,0.00024657,10]
[380694716,1755847841865,-500.0,0.00024657,10]
[380694717,1755847841875,-480.0,0.00024657,10]
[380694718,1755847841885,-528.9579881,0.00024657,10]
[380694719,1755847841894,-480.0,0.00024657,10]
[380694720,1755847841904,-885.27,0.00024657,10]
[380694721,1755847841913,-480.0,0.00024657,2]
[380694722,1755847841922,-480.0,0.00024657,10]
[380694723,1755847841931,-480.0,0.00024657,10]
[380694724,1755847841942,-255.12813922,0.00024657,10]
[380694725,1755847841952,-480.0,0.00024657,10]
[380694726,1755847841961,-480.0,0.00024657,10]
[380694727,1755847841971,-1608.17,0.00024657,10]
[380694728,1755847841980,-480.0,0.00024657,10]
[380694729,1755847841991,-480.0,0.00024657,10]
[380694730,1755847842003,-480.0,0.00024657,10]
[380694731,1755847842012,-500.0,0.00024658,2]
[380694732,1755847842022,-150.0,0.00024673,2]
[380694733,1755847842031,-501.74330652,0.00024673,2]
[380694734,1755847842041,-150.0,0.00024673,2]
[380694735,1755847842050,-500.0,0.00024673,2]
[380694736,1755847842060,-500.0,0.00024673,2]
[380694737,1755847842070,-507.67472078,0.00024673,2]
[380694738,1755847842082,-500.0,0.00024673,2]
[380694739,1755847842091,-501.9113435,0.00024673,2]
[380694740,1755847842100,-500.0,0.00024673,2]
[380694741,1755847842110,-801.0,0.00024695,2]
[380694742,1755847842120,-162.02,0.00024732,7]
[380694743,1755847842129,-156.0,0.00024736,7]
[380694744,1755847842139,-285.69,0.00024744,2]
[380694745,1755847842148,-151.0,0.000248,7]
[380694746,1755847842158,-162.02,0.00024832,7]
[380694747,1755847842167,-156.0,0.00024836,7]
[380694748,1755847842176,-500.0,0.00024899,2]
[380694749,1755847842186,-468.72927469,0.00024899,2]
[380694750,1755847842195,-153.601232,0.000249,7]
[380694751,1755847842204,-194.073503,0.000249,7]
[380694752,1755847842213,-423889.68656,0.000249,2]
[380694753,1755847842223,-480.0,0.00024931,10]
[380694754,1755847842232,-480.0,0.00024931,10]
[380694755,1755847842242,-480.0,0.00024931,10]
[380694756,1755847842251,-480.0,0.00024931,10]
[380694757,1755847842260,-173.69599423,0.00024931,10]
[380694758,1755847842270,-423.13923802,0.00024931,10]
[380694759,1755847842280,-480.0,0.00024931,10]
[380694760,1755847842290,-480.0,0.00024931,10]
[380694761,1755847842300,-604.17284146,0.00024931,10]
[380694762,1755847842309,-480.0,0.00024931,10]
[380694763,1755847842318,-480.0,0.00024931,10]
[380694764,1755847842329,-492.51172,0.00024931,10]
[380694765,1755847842339,-480.0,0.00024931,10]
[380694766,1755847842348,-480.0,0.00024931,10]
[380694767,1755847842360,-490.60034808,0.00024931,10]
[380694768,1755847842369,-517.93562153,0.00024931,10]
[380694769,1755847842378,-480.0,0.00024931,10]
[380694770,1755847842388,-480.0,0.00024931,10]
[380694771,1755847842397,-480.0,0.00024931,10]
[380694772,1755847842406,-480.0,0.00024931,10]
[380694773,1755847842416,-480.0,0.00024931,10]
[380694774,1755847842517,-480.0,0.00024931,10]
[380694775,1755847842527,-151.0,0.00024931,7]
[380694776,1755847842536,-151.0,0.00024931,7]
[380694777,1755847842546,-151.0,0.00024931,7]
[380694778,1755847842556,-151.0,0.00024931,7]
[380694779,1755847842566,-151.0,0.00024931,7]
[380694780,1755847842575,-241.50866,0.00024931,7]
[380694781,1755847842585,-480.0,0.00024931,10]
[380694782,1755847842594,-480.0,0.00024931,10]
[380694783,1755847842603,-480.0,0.00024931,10]
[380694784,1755847842616,-309.45111049,0.00024931,10]
[380694785,1755847842625,-480.0,0.00024931,10]
[380694786,1755847842634,-727.08,0.00024931,10]
[380694787,1755847842644,-480.0,0.00024931,10]
[380694788,1755847842653,-480.0,0.00024931,10]
[380694789,1755847842662,-480.0,0.00024931,10]
[380694790,1755847842671,-535.69188012,0.00024931,10]
[380694791,1755847842681,-480.0,0.00024931,10]
[380694792,1755847842691,-480.0,0.00024931,10]
[380694793,1755847842700,-414.5855922,0.00024931,10]
[380694794,1755847842709,-406.03316049,0.00024931,10]
[380694795,1755847842719,-502.06148124,0.00024931,10]
[380694796,1755847842728,-480.0,0.00024931,10]
[380694797,1755847842737,-480.0,0.00024931,10]
[380694798,1755847842747,-480.0,0.00024931,10]
[380694799,1755847842756,-480.0,0.00024931,10]
[380694800,1755847842765,-480.0,0.00024931,10]
[380694801,1755847842775,-480.0,0.00024931,10]
[380694802,1755847842784,-480.0,0.00024931,10]
[380694803,1755847842794,-480.0,0.00024931,10]
[380694804,1755847842803,-480.0,0.00024931,10]
[380694805,1755847842812,-480.0,0.00024931,10]
[380694806,1755847842821,-480.0,0.00024931,10]
[380694807,1755847842831,-2164.51,0.00024931,10]
[380694808,1755847842840,-480.0,0.00024931,10]
[380694809,1755847842850,-480.0,0.00024931,10]
[380694810,1755847842860,-480.0,0.00024931,10]
[380694811,1755847842870,-480.0,0.00024931,10]
[380694812,1755847842879,-480.0,0.00024931,10]
[380694813,1755847842888,-890.84,0.00024931,10]
[380694814,1755847842898,-480.0,0.00024931,3]
[380694815,1755847842907,-593.63328228,0.00024931,10]
[380694816,1755847842918,-480.0,0.00024931,10]
[380694817,1755847842927,-480.0,0.00024931,10]
[380694818,1755847842937,-480.0,0.00024931,10]
[380694819,1755847842950,-480.0,0.00024931,10]
[380694820,1755847842959,-480.0,0.00024931,10]
[380694822,1755847842969,-480.0,0.00024931,10]
[380694823,1755847842978,-480.0,0.00024931,10]
[380694824,1755847842989,-480.0,0.00024931,10]
[380694825,1755847842998,-480.0,0.00024931,10]
[380694826,1755847843007,-480.0,0.00024931,10]
[380694827,1755847843016,-480.0,0.00024931,10]
[380694828,1755847843026,-480.0,0.00024931,10]
[380694829,1755847843035,-2067.91,0.00024931,10]
[380694830,1755847843045,-480.0,0.00024931,10]
[380694832,1755847843054,-480.0,0.00024931,10]
[380694833,1755847843063,-419.39659461,0.00024931,10]
[380694834,1755847843072,-480.0,0.00024931,10]
[380694835,1755847843081,-1501.81,0.00024931,10]
[380694836,1755847843091,-480.0,0.00024931,10]
[380694837,1755847843100,-480.0,0.00024931,10]
[380694838,1755847843111,-480.0,0.00024931,10]
[380694839,1755847843121,-480.0,0.00024931,10]
[380694840,1755847843131,-480.0,0.00024931,10]
[380694841,1755847843140,-480.0,0.00024931,10]
[380694842,1755847843150,-480.0,0.00024931,10]
[380694843,1755847843159,-480.0,0.00024931,10]
[380694844,1755847843169,-480.0,0.00024931,10]
[380694845,1755847843179,-480.0,0.00024931,10]
[380694846,1755847843188,-480.0,0.00024931,10]
[380694847,1755847843198,-801.51,0.00024931,10]
[380694848,1755847843207,-479.22616069,0.00024931,10]
[380694849,1755847843217,-480.0,0.00024931,10]
[380694850,1755847843227,-885.27,0.00024931,10]
[380694851,1755847843237,-480.0,0.00024931,2]
[380694852,1755847843247,-480.0,0.00024931,10]
[380694853,1755847843257,-480.0,0.00024931,10]
[380694854,1755847843266,-480.0,0.00024931,10]
[380694855,1755847843275,-592.98852806,0.00024931,10]
[380694856,1755847843285,-1608.17,0.00024931,10]
[380694857,1755847843295,-480.0,0.00024931,10]
[380694858,1755847843304,-480.0,0.00024931,10]
[380694859,1755847843314,-480.0,0.00024931,10]
[380694860,1755847843324,-500.0,0.00024932,2]
[380694861,1755847843333,-162.02,0.00024932,7]
[380694862,1755847843344,-156.0,0.00024936,7]
[380694863,1755847843353,-1578.28209142,0.00024948,2]
[380694864,1755847843364,-160.0,0.00024948,2]
[380694865,1755847843374,-513.027678,0.00024951,2]
[380694866,1755847843384,-252.0,0.00024957,2]
[380694867,1755847843394,-1500.0,0.00024968,2]
[380694868,1755847843403,-1466.33338251,0.00024968,2]
[380694869,1755847843413,-1500.0,0.00024968,2]
[380694870,1755847843423,-801.0,0.00024969,2]
[380694871,1755847843433,-157.33602433,0.00024973,2]
[380694872,1755847843443,-150.0,0.00024973,2]
[380694873,1755847843452,-21923.76,0.00025,2]
[380694874,1755847843462,-151.0,0.00025,6]
[380694875,1755847843472,-1068.17799602,0.00025,2]
[380694876,1755847843481,-2630.42508249,0.00025,2]
[380694877,1755847843491,-208.56593001,0.00025,2]
[380694878,1755847843500,-360.05058669,0.00025,2]
[380694879,1755847843510,-553.96004852,0.00025,2]
[380694880,1755847843519,-500.0,0.00025,2]
[380694881,1755847843528,-30155.30171781,0.00025,2]
[380694882,1755847843537,-600.0,0.00025,2]
[380694883,1755847843546,-812.21,0.00025,5]
[380694884,1755847843555,-162.02,0.00025032,7]
[380694885,1755847843565,-156.0,0.00025036,7]
[380694886,1755847843575,-502.95907648,0.00025068,2]
[380694887,1755847843584,-1500.0,0.00025068,2]
[380694888,1755847843594,-1500.0,0.00025068,2]
[380694889,1755847843603,-595.91252363,0.00025068,2]
[380694890,1755847843614,-501.31030205,0.00025068,2]
[380694891,1755847843623,-1002.97462895,0.00025068,2]
[380694893,1755847843633,-162.02,0.00025132,7]
[380694894,1755847843642,-156.0,0.00025136,7]
[380694896,1755847843652,-151.0,0.000252,15]
[380694898,1755847843662,-357.49541031,0.00025203,2]
[380694901,1755847843671,-480.0,0.00025205,10]
[380694902,1755847843680,-480.0,0.00025205,10]
[380694903,1755847843690,-480.0,0.00025205,10]
[380694904,1755847843699,-499.70614428,0.00025205,10]
[380694905,1755847843708,-480.0,0.00025205,10]
[380694906,1755847843717,-480.0,0.00025205,10]
[380694907,1755847843727,-480.0,0.00025205,10]
[380694908,1755847843737,-480.0,0.00025205,10]
[380694909,1755847843747,-565.66477349,0.00025205,10]
[380694910,1755847843756,-480.0,0.00025205,10]
[380694911,1755847843766,-480.0,0.00025205,10]
[380694912,1755847843776,-480.0,0.00025205,10]
[380694913,1755847843785,-480.0,0.00025205,10]
[380694914,1755847843795,-480.0,0.00025205,10]
[380694915,1755847843804,-480.0,0.00025205,10]
[380694916,1755847843814,-517.16794357,0.00025205,10]
[380694917,1755847843823,-480.0,0.00025205,10]
[380694918,1755847843832,-727.08,0.00025205,10]
[380694919,1755847843842,-480.0,0.00025205,10]
[380694920,1755847843851,-480.0,0.00025205,10]
[380694921,1755847843862,-480.0,0.00025205,10]
[380694922,1755847843871,-248.48972358,0.00025205,10]
[380694924,1755847843880,-480.0,0.00025205,10]
[380694926,1755847843890,-480.0,0.00025205,10]
[380694927,1755847843900,-480.0,0.00025205,10]
[380694928,1755847843909,-480.0,0.00025205,10]
[380694929,1755847843920,-480.0,0.00025205,10]
[380694930,1755847843930,-480.0,0.00025205,10]
[380694931,1755847843943,-312.72477465,0.00025205,10]
[380694932,1755847843952,-480.0,0.00025205,10]
[380694933,1755847843962,-480.0,0.00025205,10]
[380694934,1755847843972,-480.0,0.00025205,10]
[380694935,1755847843983,-2164.51,0.00025205,10]
[380694936,1755847843992,-480.0,0.00025205,10]
[380694937,1755847844002,-480.0,0.00025205,10]
[380694938,1755847844012,-890.84,0.00025205,10]
[380694939,1755847844021,-480.0,0.00025205,3]
[380694940,1755847844032,-480.0,0.00025205,10]
[380694942,1755847844042,-480.0,0.00025205,10]
[380694944,1755847844052,-480.0,0.00025205,10]
[380694946,1755847844062,-480.0,0.00025205,10]
[380694947,1755847844072,-480.0,0.00025205,10]
[380694949,1755847844082,-480.0,0.00025205,10]
[380694951,1755847844091,-480.0,0.00025205,10]
[380694952,1755847844100,-495.47606925,0.00025205,10]
[380694953,1755847844112,-480.0,0.00025205,10]
[380694954,1755847844121,-506.78575179,0.00025205,10]
[380694955,1755847844129,-480.0,0.00025205,10]
[380694956,1755847844139,-2067.91,0.00025205,10]
[380694957,1755847844148,-480.0,0.00025205,10]
[380694958,1755847844158,-480.0,0.00025205,10]
[380694959,1755847844167,-480.0,0.00025205,10]
[380694960,1755847844176,-1501.81,0.00025205,10]
[380694961,1755847844186,-480.0,0.00025205,10]
[380694962,1755847844195,-480.0,0.00025205,10]
[380694963,1755847844204,-480.0,0.00025205,10]
[380694964,1755847844213,-480.0,0.00025205,10]
[380694965,1755847844222,-480.0,0.00025205,10]
[380694966,1755847844232,-480.0,0.00025205,10]
[380694967,1755847844241,-480.0,0.00025205,10]
[380694968,1755847844250,-190.59234391,0.00025205,10]
[380694969,1755847844259,-372.38717356,0.00025205,10]
[380694970,1755847844268,-480.0,0.00025205,10]
[380694971,1755847844278,-801.51,0.00025205,10]
[380694972,1755847844287,-480.0,0.00025205,10]
[380694973,1755847844296,-885.27,0.00025205,10]
[380694974,1755847844305,-430.0,0.00025205,2]
[380694975,1755847844314,-480.0,0.00025205,10]
[380694976,1755847844323,-480.0,0.00025205,10]
[380694977,1755847844332,-480.0,0.00025205,10]
[380694978,1755847844342,-1608.17,0.00025205,10]
[380694979,1755847844351,-394.17291234,0.00025205,10]
[380694980,1755847844362,-480.0,0.00025205,10]
[380694981,1755847844371,-495.2576,0.00025205,10]
[380694982,1755847844381,-500.0,0.00025206,2]
[380694983,1755847844391,-250.0,0.00025221,2]
[380694984,1755847844400,-300.75940492,0.00025221,2]
[380694985,1755847844410,-1000.0,0.00025221,2]
[380694986,1755847844419,-162.02,0.00025232,7]
[380694987,1755847844429,-156.0,0.00025236,7]
[380694989,1755847844438,-801.0,0.00025243,2]
[380694990,1755847844447,-151.0,0.000253,10]
[380694991,1755847844457,-640.90008975,0.00025322,2]
[380694992,1755847844466,-162.08319839,0.00025332,7]
[380694993,1755847844475,-581.0,0.00025333,3]
[380694994,1755847844484,-156.0,0.00025336,7]
[380694995,1755847844494,-228.34406871,0.00025389,2]
[380694996,1755847844504,-1578.28209142,0.00025425,2]
[380694997,1755847844513,-156.0,0.00025436,7]
[380694998,1755847844522,-1921.04294712,0.00025449,3]
[380694999,1755847844532,-151.0,0.00025464,2]
[380695000,1755847844541,-19897.22545671,0.00025464,2]
[380695001,1755847844550,-600.0,0.00025478,2]
[380695002,1755847844560,-480.0,0.00025479,10]
[380695003,1755847844570,-480.0,0.00025479,10]
[380695004,1755847844579,-480.0,0.00025479,10]
[380695005,1755847844588,-492.96498502,0.00025479,10]
[380695006,1755847844597,-480.0,0.00025479,10]
[380695007,1755847844608,-480.0,0.00025479,10]
[380695008,1755847844617,-480.0,0.00025479,10]
[380695009,1755847844626,-480.0,0.00025479,10]
[380695010,1755847844635,-480.0,0.00025479,10]
[380695011,1755847844644,-480.0,0.00025479,10]
[380695012,1755847844653,-480.0,0.00025479,10]
[380695013,1755847844662,-727.08,0.00025479,10]
[380695014,1755847844671,-480.0,0.00025479,10]
[380695015,1755847844680,-480.0,0.00025479,10]
[380695016,1755847844689,-480.0,0.00025479,10]
[380695017,1755847844698,-480.0,0.00025479,10]
[380695018,1755847844707,-487.5807996,0.00025479,10]
[380695019,1755847844716,-470.16439943,0.00025479,10]
[380695020,1755847844725,-480.0,0.00025479,10]
[380695021,1755847844735,-212.05717137,0.00025479,10]
[380695022,1755847844745,-480.0,0.00025479,10]
[380695023,1755847844754,-2164.51,0.00025479,10]
[380695024,1755847844763,-480.0,0.00025479,10]
[380695025,1755847844772,-890.84,0.00025479,10]
[380695026,1755847844782,-480.0,0.00025479,3]
[380695027,1755847844793,-480.0,0.00025479,10]
[380695028,1755847844889,-480.0,0.00025479,10]
[380695029,1755847844899,-247.95955789,0.00025479,10]
[380695030,1755847844908,-592.38449627,0.00025479,10]
[380695031,1755847844918,-480.0,0.00025479,10]
[380695032,1755847844927,-480.0,0.00025479,10]
[380695033,1755847844938,-171.11751214,0.00025479,10]
[380695034,1755847844950,-480.0,0.00025479,10]
[380695035,1755847844959,-2067.91,0.00025479,10]
[380695036,1755847844969,-480.0,0.00025479,10]
[380695037,1755847844978,-480.0,0.00025479,10]
[380695038,1755847844990,-480.0,0.00025479,10]
[380695039,1755847845000,-1501.81,0.00025479,10]
[380695040,1755847845009,-480.0,0.00025479,10]
[380695041,1755847845021,-480.0,0.00025479,10]
[380695042,1755847845031,-480.0,0.00025479,10]
[380695043,1755847845040,-480.0,0.00025479,10]
[380695044,1755847845050,-480.0,0.00025479,10]
[380695045,1755847845060,-480.0,0.00025479,10]
[380695046,1755847845070,-480.0,0.00025479,10]
[380695047,1755847845079,-480.0,0.00025479,10]
[380695048,1755847845089,-801.51,0.00025479,10]
[380695049,1755847845098,-480.0,0.00025479,10]
[380695050,1755847845107,-885.27,0.00025479,10]
[380695051,1755847845116,-480.0,0.00025479,10]
[380695052,1755847845126,-480.0,0.00025479,10]
[380695053,1755847845135,-1608.17,0.00025479,10]
[380695054,1755847845144,-480.0,0.00025479,10]
[380695055,1755847845153,-500.0,0.0002548,2]
[380695056,1755847845162,-500.0,0.0002549,2]
[380695057,1755847845175,-168.0,0.00025496,2]
[380695058,1755847845185,-260.0,0.00025496,2]
[380695059,1755847845195,-1000.0,0.000255,2]
[380695060,1755847845204,-1680.0,0.00025505,2]
[380695061,1755847845214,-2000.0,0.00025516,2]
[380695062,1755847845224,-1500.0,0.00025516,2]
[380695063,1755847845235,-801.0,0.00025517,2]
[380695064,1755847845254,-500.0,0.00025518,2]
[380695065,1755847845263,-250.0,0.00025521,2]
[380695066,1755847845273,-156.0,0.00025536,7]
[380695067,1755847845283,-500.0,0.00025573,2]
[380695068,1755847845293,-700.0,0.00025589,2]
[380695069,1755847845303,-500.0,0.00025598,2]
[380695070,1755847845312,-1262.29165198,0.00025616,2]
[380695071,1755847845321,-2115.28964534,0.00025616,2]
[380695072,1755847845330,-160.184098,0.00025626,2]
[380695073,1755847845340,-168.0,0.00025629,2]
[380695074,1755847845350,-160.184098,0.00025635,2]
[380695075,1755847845359,-156.0,0.00025636,7]
[380695076,1755847845368,-700.0,0.00025669,2]
[380695077,1755847845378,-700.0,0.00025694,2]
[380695078,1755847845388,-151.0,0.000257,13]
[380695079,1755847845398,-500.0,0.00025701,2]
[380695080,1755847845408,-500.0,0.00025708,2]
[380695081,1755847845418,-500.0,0.00025731,2]